[Event "*** SCC Grand Prix: Titled Tuesday Blitz"]
[Site "Chess.com"]
[Date "2020.06.09"]
[Round "7"]
[White "Training_Day"]
[Black "Bayernbk"]
[Result "1/2-1/2"]
[WhiteElo "2316"]
[BlackElo "2446"]
[TimeControl "180+1"]
[EndTime "10:18:30 PDT"]
[Termination "Game drawn by repetition"]

1. e4 {[%clk 0:03:00.9]} 1... d5 {[%clk 0:02:59.3]} 2. exd5 {[%clk 0:03:00.5]}
2... Nf6 {[%clk 0:02:59.6]} 3. Nf3 {[%clk 0:02:59.4]} 3... Bg4 {[%clk
0:02:59.6]} 4. Bb5+ {[%clk 0:02:58.6]} 4... Bd7 {[%clk 0:02:58.7]} 5. Be2 {[%clk
0:02:51]} 5... Nxd5 {[%clk 0:02:49.2]} 6. d4 {[%clk 0:02:51.1]} 6... Bg4 {[%clk
0:02:47.3]} 7. h3 {[%clk 0:02:50.2]} 7... Bh5 {[%clk 0:02:47.2]} 8. O-O {[%clk
0:02:48.9]} 8... e6 {[%clk 0:02:45.2]} 9. Ne5 {[%clk 0:02:32.6]} 9... Bxe2
{[%clk 0:02:42.9]} 10. Qxe2 {[%clk 0:02:33.5]} 10... a6 {[%clk 0:02:38]} 11. c4
{[%clk 0:02:33.4]} 11... Nf6 {[%clk 0:02:36.4]} 12. Rd1 {[%clk 0:02:33]} 12...
Be7 {[%clk 0:02:34.5]} 13. Nc3 {[%clk 0:02:32.9]} 13... O-O {[%clk 0:02:33.1]}
14. Bf4 {[%clk 0:02:32.5]} 14... Nbd7 {[%clk 0:02:28.7]} 15. Qf3 {[%clk
0:02:24.4]} 15... c6 {[%clk 0:02:25.1]} 16. d5 {[%clk 0:02:10.5]} 16... Nxe5
{[%clk 0:02:09.8]} 17. Bxe5 {[%clk 0:02:10.3]} 17... cxd5 {[%clk 0:02:07.7]} 18.
cxd5 {[%clk 0:02:08]} 18... Nxd5 {[%clk 0:01:59.8]} 19. Nxd5 {[%clk 0:02:07.5]}
19... exd5 {[%clk 0:02:00.3]} 20. Rxd5 {[%clk 0:02:08.2]} 20... Qb6 {[%clk
0:01:59.5]} 21. Rad1 {[%clk 0:01:46]} 21... Rad8 {[%clk 0:01:54.8]} 22. Qg3
{[%clk 0:01:41.3]} 22... Qg6 {[%clk 0:01:53]} 23. Rd7 {[%clk 0:01:33.3]} 23...
Qxg3 {[%clk 0:01:47.3]} 24. Bxg3 {[%clk 0:01:20]} 24... Rfe8 {[%clk 0:01:44.9]}
25. b3 {[%clk 0:01:11.3]} 25... Kf8 {[%clk 0:01:41.6]} 26. Bc7 {[%clk
0:01:03.7]} 26... Rxd7 {[%clk 0:01:30.9]} 27. Rxd7 {[%clk 0:01:04.6]} 27... b5
{[%clk 0:01:27.6]} 28. Kf1 {[%clk 0:01:02]} 28... Rc8 {[%clk 0:01:26.2]} 29. Bf4
{[%clk 0:00:52.3]} 29... g5 {[%clk 0:01:14.7]} 30. Be3 {[%clk 0:00:49.6]} 30...
Rc2 {[%clk 0:01:09.5]} 31. Rd2 {[%clk 0:00:49.1]} 31... Rxd2 {[%clk 0:01:08.2]}
32. Bxd2 {[%clk 0:00:48.7]} 32... Ke8 {[%clk 0:01:07]} 33. Ke2 {[%clk
0:00:48.4]} 33... Kd7 {[%clk 0:01:06.6]} 34. Kd3 {[%clk 0:00:48.4]} 34... Ke6
{[%clk 0:01:06.3]} 35. g4 {[%clk 0:00:39.1]} 35... Kd5 {[%clk 0:01:01.6]} 36. f3
{[%clk 0:00:31.1]} 36... Bd8 {[%clk 0:00:59.9]} 37. Bc3 {[%clk 0:00:30.6]} 37...
Bc7 {[%clk 0:00:50]} 38. Bd2 {[%clk 0:00:30.7]} 38... Bf4 {[%clk 0:00:47.8]} 39.
Bc3 {[%clk 0:00:30.9]} 39... Be5 {[%clk 0:00:44.4]} 40. Bd2 {[%clk 0:00:29.3]}
40... h6 {[%clk 0:00:43.6]} 41. Bb4 {[%clk 0:00:29.1]} 41... Bg7 {[%clk
0:00:37.7]} 42. Bd2 {[%clk 0:00:28.4]} 42... Be5 {[%clk 0:00:31.7]} 43. Bb4
{[%clk 0:00:28.1]} 43... Bg7 {[%clk 0:00:31.9]} 44. Bd2 {[%clk 0:00:23.2]} 44...
Be5 {[%clk 0:00:31.7]} 1/2-1/2

[Event "*** SCC Grand Prix: Titled Tuesday Blitz"]
[Site "Chess.com"]
[Date "2020.06.09"]
[Round "7"]
[White "MFBerna"]
[Black "IwkooO"]
[Result "0-1"]
[WhiteElo "2404"]
[BlackElo "2581"]
[TimeControl "180+1"]
[EndTime "10:18:32 PDT"]
[Termination "IwkooO won on time"]

1. e4 {[%clk 0:03:00.9]} 1... c5 {[%clk 0:02:59.2]} 2. Nf3 {[%clk 0:03:01.1]}
2... Nc6 {[%clk 0:02:59.7]} 3. d4 {[%clk 0:02:58.9]} 3... cxd4 {[%clk
0:03:00.6]} 4. Nxd4 {[%clk 0:02:59.2]} 4... Qb6 {[%clk 0:03:01.3]} 5. Nb3 {[%clk
0:02:55.1]} 5... Nf6 {[%clk 0:03:01.4]} 6. Nc3 {[%clk 0:02:55.4]} 6... e6 {[%clk
0:03:01.6]} 7. Be2 {[%clk 0:02:55]} 7... Bb4 {[%clk 0:03:01.1]} 8. Be3 {[%clk
0:02:28.2]} 8... Qc7 {[%clk 0:02:59.9]} 9. f3 {[%clk 0:02:00.7]} 9... d5 {[%clk
0:02:53.7]} 10. O-O {[%clk 0:02:01]} 10... Bxc3 {[%clk 0:02:16.2]} 11. bxc3
{[%clk 0:02:01.9]} 11... dxe4 {[%clk 0:02:17.1]} 12. fxe4 {[%clk 0:01:53.6]}
12... Nxe4 {[%clk 0:02:17.4]} 13. Qd3 {[%clk 0:01:51.2]} 13... f5 {[%clk
0:02:12.7]} 14. Bh5+ {[%clk 0:01:40.1]} 14... g6 {[%clk 0:02:07]} 15. Bf3 {[%clk
0:01:35.8]} 15... Ne5 {[%clk 0:01:46.4]} 16. Qd4 {[%clk 0:01:35.8]} 16... Nxf3+
{[%clk 0:01:33.2]} 17. gxf3 {[%clk 0:01:33.3]} 17... e5 {[%clk 0:01:33.7]} 18.
Qa4+ {[%clk 0:00:52]} 18... Bd7 {[%clk 0:01:32]} 19. Qa5 {[%clk 0:00:52.2]}
19... Qxa5 {[%clk 0:01:21.6]} 20. Nxa5 {[%clk 0:00:51.7]} 20... Nxc3 {[%clk
0:01:21.5]} 21. Nxb7 {[%clk 0:00:44]} 21... Bc6 {[%clk 0:01:11.2]} 22. Na5
{[%clk 0:00:26.1]} 22... Bd5 {[%clk 0:01:07.2]} 23. Bd2 {[%clk 0:00:23.1]} 23...
Ne2+ {[%clk 0:01:06.6]} 24. Kf2 {[%clk 0:00:20.8]} 24... Nd4 {[%clk 0:01:06.7]}
25. f4 {[%clk 0:00:16.6]} 25... e4 {[%clk 0:00:56.7]} 26. Bc3 {[%clk 0:00:15.5]}
26... e3+ {[%clk 0:00:46.8]} 27. Kxe3 {[%clk 0:00:08.7]} 27... Nxc2+ {[%clk
0:00:47.1]} 28. Kd2 {[%clk 0:00:09.2]} 28... Nxa1 {[%clk 0:00:47.5]} 29. Bxh8
{[%clk 0:00:08.9]} 29... O-O-O {[%clk 0:00:42.1]} 30. Bxa1 {[%clk 0:00:08.1]}
30... Bc4+ {[%clk 0:00:41.5]} 31. Ke1 {[%clk 0:00:07]} 31... Bxf1 {[%clk
0:00:42]} 32. Nc6 {[%clk 0:00:06.3]} 32... Rd6 {[%clk 0:00:37.2]} 33. Nxa7+
{[%clk 0:00:04.6]} 33... Kb7 {[%clk 0:00:37.7]} 34. Kxf1 {[%clk 0:00:01.9]}
34... Kxa7 {[%clk 0:00:36.8]} 35. Be5 {[%clk 0:00:01.5]} 35... Rd2 {[%clk
0:00:36]} 0-1

[Event "*** SCC Grand Prix: Titled Tuesday Blitz"]
[Site "Chess.com"]
[Date "2020.06.09"]
[Round "7"]
[White "TheBigBadChessDad"]
[Black "pedro_gines"]
[Result "1-0"]
[WhiteElo "2277"]
[BlackElo "2451"]
[TimeControl "180+1"]
[EndTime "10:18:33 PDT"]
[Termination "TheBigBadChessDad won on time"]

1. d4 {[%clk 0:03:00.9]} 1... Nf6 {[%clk 0:02:56.8]} 2. Nf3 {[%clk 0:03:00.2]}
2... b6 {[%clk 0:02:52.4]} 3. Bf4 {[%clk 0:02:59.7]} 3... Bb7 {[%clk 0:02:52.1]}
4. e3 {[%clk 0:02:59.4]} 4... d6 {[%clk 0:02:50.7]} 5. h3 {[%clk 0:02:59.1]}
5... Nbd7 {[%clk 0:02:51.2]} 6. Nbd2 {[%clk 0:02:56.4]} 6... g6 {[%clk 0:02:51]}
7. c3 {[%clk 0:02:54.7]} 7... Bg7 {[%clk 0:02:51.4]} 8. Bd3 {[%clk 0:02:53.7]}
8... O-O {[%clk 0:02:51.9]} 9. Qe2 {[%clk 0:02:53.9]} 9... c5 {[%clk 0:02:49.8]}
10. O-O {[%clk 0:02:51.7]} 10... Re8 {[%clk 0:02:47.2]} 11. e4 {[%clk 0:02:51]}
11... e5 {[%clk 0:02:46.9]} 12. dxe5 {[%clk 0:02:51]} 12... dxe5 {[%clk
0:02:47.8]} 13. Bg5 {[%clk 0:02:49.1]} 13... h6 {[%clk 0:02:47.2]} 14. Bxf6
{[%clk 0:02:47.9]} 14... Nxf6 {[%clk 0:02:48.1]} 15. Bb5 {[%clk 0:02:43]} 15...
Re7 {[%clk 0:02:47.3]} 16. Rad1 {[%clk 0:02:41.1]} 16... Qf8 {[%clk 0:02:44.6]}
17. Ba6 {[%clk 0:02:32]} 17... Bc6 {[%clk 0:02:43]} 18. Rfe1 {[%clk 0:02:24.3]}
18... Nh5 {[%clk 0:02:42.8]} 19. g3 {[%clk 0:02:21.9]} 19... Rd8 {[%clk
0:02:29.1]} 20. Nc4 {[%clk 0:02:15.5]} 20... Rxd1 {[%clk 0:02:26.6]} 21. Rxd1
{[%clk 0:02:13.9]} 21... f5 {[%clk 0:02:26.9]} 22. Nd6 {[%clk 0:02:07.9]} 22...
fxe4 {[%clk 0:02:04.7]} 23. Nxe4 {[%clk 0:02:03.2]} 23... Qf5 {[%clk 0:02:04.2]}
24. Rd8+ {[%clk 0:01:49.3]} 24... Kh7 {[%clk 0:02:01.7]} 25. Bd3 {[%clk
0:01:49.8]} 25... Nf4 {[%clk 0:00:31.3]} 26. gxf4 {[%clk 0:01:41.6]} 26... Qxf4
{[%clk 0:00:17]} 27. Qe3 {[%clk 0:01:34.3]} 27... c4 {[%clk 0:00:14.5]} 28. Bc2
{[%clk 0:01:20.3]} 28... b5 {[%clk 0:00:10.8]} 29. Rd6 {[%clk 0:00:48.9]} 29...
Ba8 {[%clk 0:00:04.1]} 30. Qxf4 {[%clk 0:00:29.1]} 30... exf4 {[%clk 0:00:05]}
31. Ned2 {[%clk 0:00:28]} 31... Kg8 {[%clk 0:00:02.4]} 32. Bxg6 {[%clk
0:00:23.1]} 32... Bc6 {[%clk 0:00:01.3]} 33. Rd8+ {[%clk 0:00:21.7]} 33... Be8
{[%clk 0:00:01.1]} 34. Rxe8+ {[%clk 0:00:20.9]} 1-0

[Event "*** SCC Grand Prix: Titled Tuesday Blitz"]
[Site "Chess.com"]
[Date "2020.06.09"]
[Round "7"]
[White "carlesdc96"]
[Black "Nyzhnyk_Illia"]
[Result "0-1"]
[WhiteElo "2745"]
[BlackElo "2904"]
[TimeControl "180+1"]
[EndTime "10:18:36 PDT"]
[Termination "Nyzhnyk_Illia won by resignation"]

1. e4 {[%clk 0:03:00.9]} 1... c6 {[%clk 0:02:59.7]} 2. Nc3 {[%clk 0:02:59.7]}
2... d5 {[%clk 0:03:00.1]} 3. Nf3 {[%clk 0:03:00.2]} 3... Bg4 {[%clk 0:02:59.2]}
4. Be2 {[%clk 0:03:00.2]} 4... e6 {[%clk 0:02:58.5]} 5. d4 {[%clk 0:02:59.7]}
5... Nf6 {[%clk 0:02:56.3]} 6. e5 {[%clk 0:02:59.7]} 6... Nfd7 {[%clk
0:02:56.5]} 7. Ng5 {[%clk 0:02:59.6]} 7... Bf5 {[%clk 0:02:54.8]} 8. Bd3 {[%clk
0:02:49.1]} 8... Bxd3 {[%clk 0:02:51.2]} 9. Qxd3 {[%clk 0:02:50]} 9... h6 {[%clk
0:02:51.4]} 10. Qh3 {[%clk 0:02:40.8]} 10... Qe7 {[%clk 0:02:47]} 11. f4 {[%clk
0:02:34.8]} 11... g6 {[%clk 0:02:43.8]} 12. Nf3 {[%clk 0:02:33]} 12... Bg7
{[%clk 0:02:43.8]} 13. Be3 {[%clk 0:02:32.8]} 13... a6 {[%clk 0:02:43.1]} 14. a4
{[%clk 0:02:19.2]} 14... c5 {[%clk 0:02:42.6]} 15. O-O {[%clk 0:02:15.5]} 15...
Nc6 {[%clk 0:02:42.4]} 16. dxc5 {[%clk 0:02:12.6]} 16... Nxc5 {[%clk 0:02:42.1]}
17. Nd4 {[%clk 0:02:10.7]} 17... h5 {[%clk 0:02:32.1]} 18. Nxc6 {[%clk
0:01:47.6]} 18... bxc6 {[%clk 0:02:33]} 19. b4 {[%clk 0:01:47.3]} 19... Nd7
{[%clk 0:02:28.3]} 20. b5 {[%clk 0:01:45.8]} 20... c5 {[%clk 0:02:16.4]} 21. Bd2
{[%clk 0:01:23]} 21... O-O {[%clk 0:02:15.5]} 22. Rfe1 {[%clk 0:01:13]} 22...
Nb6 {[%clk 0:02:15.3]} 23. Red1 {[%clk 0:00:52.3]} 23... axb5 {[%clk 0:02:04.2]}
24. axb5 {[%clk 0:00:51.2]} 24... Nc4 {[%clk 0:02:04.3]} 25. Be1 {[%clk
0:00:49.2]} 25... Qb7 {[%clk 0:02:00.7]} 26. Qf3 {[%clk 0:00:44.3]} 26... Rfb8
{[%clk 0:01:54.2]} 27. h3 {[%clk 0:00:42.2]} 27... Rxa1 {[%clk 0:01:52.7]} 28.
Rxa1 {[%clk 0:00:41.2]} 28... Ra8 {[%clk 0:01:32.6]} 29. Rxa8+ {[%clk
0:00:25.2]} 29... Qxa8 {[%clk 0:01:33.5]} 30. Kh2 {[%clk 0:00:25.2]} 30... Qa1
{[%clk 0:01:28]} 31. Qd1 {[%clk 0:00:24.4]} 31... Qa3 {[%clk 0:01:17.4]} 32. Qb1
{[%clk 0:00:20]} 32... d4 {[%clk 0:01:12.7]} 33. b6 {[%clk 0:00:13.1]} 33...
Nxb6 {[%clk 0:01:09.7]} 34. Qxb6 {[%clk 0:00:12.5]} 34... dxc3 {[%clk
0:01:10.2]} 35. Qd8+ {[%clk 0:00:12]} 35... Kh7 {[%clk 0:01:05.7]} 36. Qd3
{[%clk 0:00:12.9]} 36... Qa4 {[%clk 0:01:04.5]} 37. g3 {[%clk 0:00:09]} 37... h4
{[%clk 0:01:04.3]} 38. Qxc3 {[%clk 0:00:08.5]} 38... hxg3+ {[%clk 0:01:04.4]}
39. Bxg3 {[%clk 0:00:09.4]} 39... Bh6 {[%clk 0:01:03.7]} 40. Qe3 {[%clk
0:00:07.7]} 40... Qxc2+ {[%clk 0:01:03.3]} 41. Kg1 {[%clk 0:00:06.9]} 41... c4
{[%clk 0:01:03.5]} 42. h4 {[%clk 0:00:06.7]} 42... c3 {[%clk 0:01:02.4]} 43. Be1
{[%clk 0:00:06.8]} 43... Qd1 {[%clk 0:00:59.3]} 44. Qxc3 {[%clk 0:00:05.8]}
44... Bxf4 {[%clk 0:00:59.9]} 45. Kg2 {[%clk 0:00:06]} 45... Qe2+ {[%clk
0:00:59.2]} 46. Bf2 {[%clk 0:00:05.9]} 46... Bxe5 {[%clk 0:00:59.2]} 47. Qf3
{[%clk 0:00:04.6]} 47... Qxf3+ {[%clk 0:00:59.6]} 48. Kxf3 {[%clk 0:00:05.5]}
48... f5 {[%clk 0:00:59.3]} 49. Be3 {[%clk 0:00:05.7]} 49... Bf6 {[%clk
0:00:59.4]} 50. Bf2 {[%clk 0:00:06.2]} 50... e5 {[%clk 0:00:59.9]} 51. Bg3
{[%clk 0:00:06.3]} 51... Kg7 {[%clk 0:00:58.8]} 52. Ke3 {[%clk 0:00:06.3]} 52...
f4+ {[%clk 0:00:58.6]} 53. Bxf4 {[%clk 0:00:06.7]} 53... exf4+ {[%clk
0:00:59.5]} 54. Kxf4 {[%clk 0:00:07.4]} 54... Bxh4 {[%clk 0:01:00.1]} 0-1

[Event "*** SCC Grand Prix: Titled Tuesday Blitz"]
[Site "Chess.com"]
[Date "2020.06.09"]
[Round "7"]
[White "Anaj14"]
[Black "GoValya"]
[Result "1-0"]
[WhiteElo "2290"]
[BlackElo "2179"]
[TimeControl "180+1"]
[EndTime "10:18:36 PDT"]
[Termination "Anaj14 won by resignation"]

1. g3 {[%clk 0:03:00.5]} 1... g6 {[%clk 0:02:57.5]} 2. Bg2 {[%clk 0:03:01.1]}
2... Bg7 {[%clk 0:02:57.8]} 3. e3 {[%clk 0:03:01.4]} 3... c5 {[%clk 0:02:57.9]}
4. d3 {[%clk 0:03:01.7]} 4... Nc6 {[%clk 0:02:57.7]} 5. Ne2 {[%clk 0:03:02.1]}
5... d6 {[%clk 0:02:57.9]} 6. c4 {[%clk 0:03:00.9]} 6... Nf6 {[%clk 0:02:54.6]}
7. Nbc3 {[%clk 0:03:01]} 7... O-O {[%clk 0:02:54.6]} 8. O-O {[%clk 0:03:01]}
8... e6 {[%clk 0:02:54.9]} 9. a3 {[%clk 0:03:01.1]} 9... d5 {[%clk 0:02:54.7]}
10. cxd5 {[%clk 0:02:59.4]} 10... exd5 {[%clk 0:02:54.8]} 11. d4 {[%clk
0:02:57.8]} 11... c4 {[%clk 0:02:49.5]} 12. b3 {[%clk 0:02:50.4]} 12... Na5
{[%clk 0:02:47.1]} 13. Qd2 {[%clk 0:02:50.6]} 13... Nxb3 {[%clk 0:02:46.3]} 14.
Qa2 {[%clk 0:02:25.5]} 14... Nxa1 {[%clk 0:02:43.6]} 15. Qxa1 {[%clk 0:02:26.4]}
15... Be6 {[%clk 0:02:42.7]} 16. a4 {[%clk 0:02:26.7]} 16... a6 {[%clk
0:02:42.2]} 17. a5 {[%clk 0:02:25.2]} 17... b5 {[%clk 0:02:41.1]} 18. axb6
{[%clk 0:02:24.2]} 18... Qxb6 {[%clk 0:02:41.1]} 19. Ba3 {[%clk 0:02:25.1]}
19... Rfb8 {[%clk 0:02:40.1]} 20. Bc5 {[%clk 0:02:25.2]} 20... Qb2 {[%clk
0:02:37.1]} 21. Qa4 {[%clk 0:02:25.3]} 21... Nd7 {[%clk 0:02:24]} 22. Bd6 {[%clk
0:02:24.4]} 22... Nb6 {[%clk 0:02:20.1]} 23. Qa5 {[%clk 0:02:23.2]} 23... Nd7
{[%clk 0:01:28.7]} 24. Bxb8 {[%clk 0:02:22.2]} 24... Qxb8 {[%clk 0:01:23.5]} 25.
Nxd5 {[%clk 0:02:19.5]} 25... Bxd5 {[%clk 0:01:19.8]} 26. Bxd5 {[%clk 0:02:19]}
26... Ra7 {[%clk 0:01:20]} 27. Bxc4 {[%clk 0:02:17.8]} 27... h5 {[%clk
0:01:13.3]} 28. Nf4 {[%clk 0:02:11.6]} 28... Kh7 {[%clk 0:01:12.1]} 29. h4
{[%clk 0:02:10.6]} 29... Nf6 {[%clk 0:01:09.3]} 30. Bd3 {[%clk 0:02:04.9]} 30...
Qd6 {[%clk 0:01:03.6]} 31. Nxh5 {[%clk 0:02:01.2]} 31... Nxh5 {[%clk 0:01:02]}
32. Qxh5+ {[%clk 0:01:59]} 32... Kg8 {[%clk 0:01:01.9]} 33. Qc5 {[%clk 0:01:58]}
33... Qxc5 {[%clk 0:00:55.2]} 34. dxc5 {[%clk 0:01:58]} 34... a5 {[%clk
0:00:55.5]} 35. c6 {[%clk 0:01:57.3]} 35... a4 {[%clk 0:00:55.5]} 36. Rc1 {[%clk
0:01:53.4]} 36... Be5 {[%clk 0:00:51.4]} 37. Rc2 {[%clk 0:01:51.2]} 37... a3
{[%clk 0:00:50.5]} 38. Bc4 {[%clk 0:01:51.9]} 38... Bb2 {[%clk 0:00:49.2]} 39.
Ba2 {[%clk 0:01:51.2]} 39... Rc7 {[%clk 0:00:48.5]} 40. Kf1 {[%clk 0:01:49.1]}
40... Kg7 {[%clk 0:00:48.3]} 41. Ke2 {[%clk 0:01:49.5]} 41... Kf6 {[%clk
0:00:48.6]} 42. Rc5 {[%clk 0:01:44.1]} 42... Ke7 {[%clk 0:00:46.4]} 43. Kd3
{[%clk 0:01:40.8]} 43... Kd6 {[%clk 0:00:45.8]} 44. Rc2 {[%clk 0:01:38]} 44...
f6 {[%clk 0:00:40.3]} 45. g4 {[%clk 0:01:36.3]} 45... Ke5 {[%clk 0:00:34.9]} 46.
h5 {[%clk 0:01:32.3]} 46... g5 {[%clk 0:00:31]} 47. h6 {[%clk 0:01:25.2]} 47...
Kd6 {[%clk 0:00:29.6]} 48. f4 {[%clk 0:01:21.6]} 48... Ke7 {[%clk 0:00:19.5]}
49. h7 {[%clk 0:01:11.6]} 49... f5 {[%clk 0:00:18.1]} 50. Rxb2 {[%clk
0:01:07.6]} 50... axb2 {[%clk 0:00:15.5]} 51. h8=Q {[%clk 0:01:07.5]} 51...
b1=Q+ {[%clk 0:00:15.7]} 52. Bxb1 {[%clk 0:01:07]} 1-0

[Event "*** SCC Grand Prix: Titled Tuesday Blitz"]
[Site "Chess.com"]
[Date "2020.06.09"]
[Round "7"]
[White "Oleksandr_Bortnyk"]
[Black "praveenb2002"]
[Result "0-1"]
[WhiteElo "2938"]
[BlackElo "2773"]
[TimeControl "180+1"]
[EndTime "10:18:38 PDT"]
[Termination "praveenb2002 won on time"]

1. e4 {[%clk 0:03:00.9]} 1... c6 {[%clk 0:03:00]} 2. c4 {[%clk 0:03:00.6]} 2...
d5 {[%clk 0:02:59.9]} 3. cxd5 {[%clk 0:03:01.5]} 3... cxd5 {[%clk 0:02:59.7]} 4.
exd5 {[%clk 0:03:01.1]} 4... Nf6 {[%clk 0:02:59.9]} 5. Qa4+ {[%clk 0:03:01.4]}
5... Nbd7 {[%clk 0:02:58.3]} 6. Nc3 {[%clk 0:03:01.3]} 6... g6 {[%clk
0:02:58.5]} 7. Bc4 {[%clk 0:03:02]} 7... Bg7 {[%clk 0:02:56.7]} 8. d3 {[%clk
0:03:02.9]} 8... O-O {[%clk 0:02:53.2]} 9. Nf3 {[%clk 0:03:03.8]} 9... Nb6
{[%clk 0:02:46.4]} 10. Qb3 {[%clk 0:03:03.9]} 10... Bg4 {[%clk 0:02:45.7]} 11.
Ne5 {[%clk 0:03:00.4]} 11... Bf5 {[%clk 0:02:38.2]} 12. O-O {[%clk 0:02:55.9]}
12... Nfxd5 {[%clk 0:02:37.9]} 13. Nxf7 {[%clk 0:02:48]} 13... Rxf7 {[%clk
0:02:15.8]} 14. Nxd5 {[%clk 0:02:47.8]} 14... Nxc4 {[%clk 0:02:14.1]} 15. dxc4
{[%clk 0:02:46.4]} 15... e6 {[%clk 0:02:07.6]} 16. Nf4 {[%clk 0:02:38.2]} 16...
Qd4 {[%clk 0:02:03.9]} 17. Re1 {[%clk 0:02:13.7]} 17... Rc8 {[%clk 0:01:29.3]}
18. c5 {[%clk 0:02:01.9]} 18... e5 {[%clk 0:01:16.3]} 19. Be3 {[%clk 0:01:58.2]}
19... Qe4 {[%clk 0:01:09.6]} 20. Ne6 {[%clk 0:01:54]} 20... h6 {[%clk
0:01:03.3]} 21. Nxg7 {[%clk 0:01:45]} 21... Bd7 {[%clk 0:00:51.7]} 22. Bxh6
{[%clk 0:00:46.6]} 22... Qh4 {[%clk 0:00:50.7]} 23. Qe3 {[%clk 0:00:45.6]} 23...
Kh7 {[%clk 0:00:44.5]} 24. Bg5 {[%clk 0:00:42.1]} 24... Qb4 {[%clk 0:00:36.3]}
25. Qxe5 {[%clk 0:00:25.3]} 25... Rxc5 {[%clk 0:00:31]} 26. Qd6 {[%clk
0:00:20.3]} 26... Rxf2 {[%clk 0:00:17.5]} 27. Qg3 {[%clk 0:00:03.3]} 27... Rcc2
{[%clk 0:00:08.8]} 28. Re7 {[%clk 0:00:01.9]} 28... Rxg2+ {[%clk 0:00:08.2]} 29.
Qxg2 {[%clk 0:00:02.8]} 29... Rxg2+ {[%clk 0:00:08.4]} 30. Kxg2 {[%clk
0:00:03.7]} 30... Bc6+ {[%clk 0:00:08]} 31. Kg3 {[%clk 0:00:03.6]} 31... Qd6+
{[%clk 0:00:07.2]} 0-1

[Event "*** SCC Grand Prix: Titled Tuesday Blitz"]
[Site "Chess.com"]
[Date "2020.06.09"]
[Round "7"]
[White "bulletteemo"]
[Black "Haapana"]
[Result "1-0"]
[WhiteElo "2538"]
[BlackElo "2391"]
[TimeControl "180+1"]
[EndTime "10:18:39 PDT"]
[Termination "bulletteemo won by resignation"]

1. e4 {[%clk 0:02:52.3]} 1... e6 {[%clk 0:02:57.1]} 2. d4 {[%clk 0:02:51.8]}
2... d5 {[%clk 0:02:56.9]} 3. e5 {[%clk 0:02:51.4]} 3... c5 {[%clk 0:02:56.1]}
4. c3 {[%clk 0:02:51.2]} 4... Nc6 {[%clk 0:02:56.3]} 5. Nf3 {[%clk 0:02:49.3]}
5... Bd7 {[%clk 0:02:53.7]} 6. a3 {[%clk 0:02:38.9]} 6... a5 {[%clk 0:02:30.8]}
7. Bd3 {[%clk 0:02:37.8]} 7... Qb6 {[%clk 0:02:22.1]} 8. Bc2 {[%clk 0:02:31.2]}
8... Nh6 {[%clk 0:02:02.5]} 9. O-O {[%clk 0:02:20.7]} 9... cxd4 {[%clk 0:02:01]}
10. cxd4 {[%clk 0:02:18.8]} 10... Nf5 {[%clk 0:02:00]} 11. Bxf5 {[%clk
0:01:54.5]} 11... exf5 {[%clk 0:02:00.9]} 12. Nc3 {[%clk 0:01:55]} 12... Be6
{[%clk 0:02:00.6]} 13. Qd3 {[%clk 0:01:47.7]} 13... Be7 {[%clk 0:01:54.3]} 14.
Be3 {[%clk 0:01:33.8]} 14... O-O {[%clk 0:01:51.5]} 15. h4 {[%clk 0:01:29.9]}
15... a4 {[%clk 0:01:26.1]} 16. h5 {[%clk 0:01:22]} 16... h6 {[%clk 0:01:06.3]}
17. Rfc1 {[%clk 0:01:16.4]} 17... Rfc8 {[%clk 0:01:03.5]} 18. Ne2 {[%clk
0:00:58]} 18... Na5 {[%clk 0:00:57.5]} 19. Ng3 {[%clk 0:00:53.7]} 19... Nb3
{[%clk 0:00:47.2]} 20. Rxc8+ {[%clk 0:00:53]} 20... Rxc8 {[%clk 0:00:48.1]} 21.
Rd1 {[%clk 0:00:50.7]} 21... Qc6 {[%clk 0:00:45]} 22. Nxf5 {[%clk 0:00:21.9]}
22... Bf8 {[%clk 0:00:31.2]} 23. Ne1 {[%clk 0:00:20.3]} 23... Qc4 {[%clk
0:00:28.8]} 24. Qb1 {[%clk 0:00:19.1]} 24... Bxf5 {[%clk 0:00:18.1]} 25. Qxf5
{[%clk 0:00:18.4]} 25... Qe2 {[%clk 0:00:18.8]} 26. Rb1 {[%clk 0:00:17.1]} 26...
Rc6 {[%clk 0:00:16.6]} 27. Qd3 {[%clk 0:00:16.7]} 27... Qxh5 {[%clk 0:00:12.8]}
28. Qb5 {[%clk 0:00:16.8]} 28... Qg6 {[%clk 0:00:12.1]} 29. Rd1 {[%clk
0:00:16.1]} 29... Qe6 {[%clk 0:00:09.2]} 30. Qxa4 {[%clk 0:00:16]} 30... Rc4
{[%clk 0:00:04.9]} 31. Qxb3 {[%clk 0:00:15.6]} 1-0